fUSD/lending_fUSD_20240328
["ID","MTS","AMOUNT","RATE_DAILY","PERIOD"]
[320876750,1711659039454,-22.03555815,0.00049315,120]
[320876751,1711659039467,-477.96444185,0.00049315,120]
[320876752,1711659039477,-500.0,0.00049315,120]
[320876753,1711659039486,-510.53352636,0.00049315,120]
[320876754,1711659039496,-500.0,0.00049315,120]
[320876755,1711659039506,-501.26,0.00049315,120]
[320876756,1711659039516,-609.36,0.00049315,120]
[320876757,1711659039526,-504.07728011,0.00049315,120]
[320876758,1711659039536,-500.0,0.00049315,120]
[320876759,1711659039547,-500.0,0.00049315,120]
[320876760,1711659039557,-503.221713,0.00049315,120]
[320876761,1711659039567,-500.0,0.00049315,2]
[320876762,1711659039577,-566.99,0.00049315,120]
[320876764,1711659039587,-500.0,0.00049315,120]
[320876766,1711659039597,-500.0,0.00049315,2]
[320876767,1711659039607,-500.0,0.00049315,120]
[320876768,1711659039617,-500.0,0.00049315,120]
[320876769,1711659039627,-500.0,0.00049315,120]
[320876770,1711659039636,-501.78755714,0.00049315,120]
[320876771,1711659039646,-500.0,0.00049315,120]
[320876772,1711659039656,-500.0,0.00049315,120]
[320876773,1711659039666,-158.49231647,0.00049315,120]
[320876774,1711659039676,-500.0,0.00049315,120]
[320876775,1711659039686,-500.0,0.00049315,120]
[320876776,1711659039695,-847.86,0.00049315,120]
[320876777,1711659039705,-500.0,0.00049315,120]
[320876778,1711659039716,-500.0,0.00049315,120]
[320876779,1711659039726,-500.0,0.00049315,120]
[320876780,1711659039736,-500.0,0.00049315,120]
[320876781,1711659039746,-500.0,0.00049315,120]
[320876782,1711659039755,-500.0,0.00049315,120]
[320876783,1711659039765,-500.0,0.00049315,120]
[320876784,1711659039775,-500.0,0.00049315,30]
[320876785,1711659039785,-500.0,0.00049315,120]
[320876786,1711659039796,-500.0,0.00049315,120]
[320876787,1711659039806,-500.0,0.00049315,120]
[320876788,1711659039816,-500.0,0.00049315,120]
[320876789,1711659039826,-500.0,0.00049315,120]
[320876790,1711659039835,-475.50910889,0.00049315,120]
[320876791,1711659039851,-24.49089111,0.00049315,120]
[320876792,1711659039861,-500.0,0.00049315,120]
[320876793,1711659039871,-503.49917304,0.00049315,120]
[320876794,1711659039881,-502.14026829,0.00049315,120]
[320876795,1711659039890,-500.0,0.00049315,120]
[320876796,1711659039900,-503.43272351,0.00049315,120]
[320876797,1711659039909,-500.0,0.00049315,120]
[320876798,1711659039919,-500.0,0.00049315,120]
[320876799,1711659039931,-500.0,0.00049315,120]
[320876800,1711659039941,-500.0,0.00049315,120]
[320876801,1711659039951,-500.0,0.00049315,120]
[320876802,1711659039960,-500.0,0.00049315,120]
[320876803,1711659039974,-503.57954647,0.00049315,120]
[320876804,1711659039984,-515.32,0.00049315,120]
[320876805,1711659039994,-500.0,0.00049315,120]
[320876806,1711659040004,-500.0,0.00049315,120]
[320876807,1711659040014,-167.70031108,0.00049315,120]
[320876808,1711659040030,-335.26104391,0.00049315,120]
[320876809,1711659040041,-500.0,0.00049315,120]
[320876810,1711659040051,-167.27890414,0.00049315,120]
[320876811,1711659040130,-332.72109586,0.00049315,120]
[320876812,1711659040141,-500.0,0.00049315,120]
[320876813,1711659040152,-500.0,0.00049315,120]
[320876814,1711659040162,-503.6937618,0.00049315,120]
[320876815,1711659040172,-501.926852,0.00049315,120]
[320876816,1711659040182,-500.0,0.00049315,120]
[320876817,1711659040193,-500.0,0.00049315,120]
[320876818,1711659040203,-500.0,0.00049315,120]
[320876819,1711659040214,-500.0,0.00049315,120]
[320876820,1711659040224,-500.0,0.00049315,120]
[320876821,1711659040234,-500.0,0.00049315,120]
[320876822,1711659040245,-500.0,0.00049315,120]
[320876823,1711659040255,-504.56268446,0.00049315,120]
[320876824,1711659040265,-535.35,0.00049315,120]
[320876825,1711659040275,-500.0,0.00049315,120]
[320876826,1711659040285,-500.0,0.00049315,120]
[320876827,1711659040297,-500.0,0.00049315,120]
[320876828,1711659040307,-500.0,0.00049315,120]
[320876829,1711659040317,-500.0,0.00049315,120]
[320876830,1711659040327,-500.0,0.00049315,120]
[320876831,1711659040338,-503.16085386,0.00049315,120]
[320876832,1711659040348,-500.0,0.00049315,120]
[320876833,1711659040358,-500.0,0.00049315,120]
[320876834,1711659040370,-565.26,0.00049315,120]
[320876835,1711659040659,-500.0,0.00049315,120]
[320876836,1711659040669,-582.78297661,0.00049315,120]
[320876837,1711659040678,-500.0,0.00049315,120]
[320876838,1711659040687,-502.58397041,0.00049315,120]
[320876839,1711659040696,-500.0,0.00049315,120]
[320876840,1711659040706,-500.0,0.00049315,120]
[320876841,1711659040715,-500.0,0.00049315,120]
[320876842,1711659040724,-501.46622829,0.00049315,120]
[320876843,1711659040733,-200.33136216,0.00049315,120]
[320876844,1711659040748,-299.66863784,0.00049315,120]
[320876845,1711659040757,-467.69289574,0.00049315,120]
[320876846,1711659040782,-32.30710426,0.00049315,120]
[320876847,1711659040792,-500.0,0.00049315,120]
[320876848,1711659040801,-500.0,0.00049315,120]
[320876849,1711659040810,-500.0,0.00049315,120]
[320876850,1711659040819,-500.0,0.00049315,120]
[320876851,1711659040828,-473.18640518,0.00049315,120]
[320876852,1711659041116,-150.0,0.00048309,2]
[320876853,1711659041125,-26.81359482,0.00049315,120]
[320876854,1711659041135,-500.0,0.00049315,120]
[320876855,1711659041145,-500.0,0.00049315,120]
[320876856,1711659041154,-526.13262179,0.00049315,120]
[320876857,1711659041163,-500.0,0.00049315,120]
[320876858,1711659041173,-500.0,0.00049315,120]
[320876859,1711659041182,-31.23338399,0.00049315,120]
[320876864,1711659042668,-725.25455243,0.00049,2]
[320876865,1711659042941,-1935.69165005,0.00049,2]
[320876866,1711659042998,-1339.05379752,0.00049,2]
[320876867,1711659043008,-468.76661601,0.00049315,120]
[320876868,1711659043019,-378.25591056,0.00049315,120]
[320876913,1711659099370,-300.0,0.00027975,2]
[320876915,1711659184073,1405727.38997897,0.00040814,30]
[320876920,1711659886335,1914.65882806,0.00026,2]
[320876921,1711659949631,322.29198776,0.00026,2]
[320876922,1711659970464,322.29198776,0.00026,2]
[320876923,1711659988468,359.98547311,0.00026,2]
[320876924,1711660040981,110459.78597987,0.0003,30]
[320876926,1711660232145,-19330.3779971,0.00027873,2]
[320876927,1711660232156,-19330.3779971,0.00027873,2]
[320876928,1711660232166,-2059.11624542,0.00027874,2]
[320876929,1711660232175,-300.0,0.00027875,2]
[320876930,1711660232185,-207.88455727,0.000284,2]
[320876931,1711660232195,-350.0,0.00029,3]
[320876932,1711660232205,-577.88184554,0.0003,4]
[320876933,1711660232214,-400.0,0.00031,3]
[320876934,1711660232223,-450.0,0.00033,3]
[320876935,1711660232233,-12972.23059567,0.00035,30]
[320876936,1711660232243,-500.0,0.00035,3]
[320876937,1711660232252,-550.0,0.00037,3]
[320876938,1711660232262,-367.27,0.00037135,2]
[320876939,1711660232271,-150.0,0.00038831,2]
[320876940,1711660232280,-159.65,0.00038925,120]
[320876941,1711660232289,-1000.0,0.0003895,2]
[320876942,1711660232298,-164.32,0.00038968,15]
[320876943,1711660232307,-220.86,0.00039058,10]
[320876944,1711660232316,-616.26,0.00039074,2]
[320876945,1711660232325,-339.02,0.00039082,2]
[320876946,1711660232335,-250.0,0.00039208,112]
[320876947,1711660232344,-23900.0,0.00039231,2]
[320876948,1711660232353,-950.42,0.0003932,2]
[320876949,1711660232363,-367.27,0.00039399,2]
[320876950,1711660232372,-156.14,0.00039628,2]
[320876951,1711660232383,-151.02532419,0.000404,8]
[320876952,1711660232396,-363.25041146,0.000404,2]
[320876953,1711660232405,-2127.78670533,0.000404,2]
[320876954,1711660232414,-340.27277944,0.000404,32]
[320876955,1711660232423,-1372.30714507,0.000404,2]
[320876956,1711660232434,-339.76008654,0.000404,2]
[320876957,1711660232443,-5464.78445172,0.000404,2]
[320876958,1711660232452,-690.03979592,0.000404,2]
[320876959,1711660232462,-157.032905,0.00040418,21]
[320876960,1711660232472,-157.032905,0.00040428,22]
[320876961,1711660232482,-157.032905,0.00040438,23]
[320876962,1711660232491,-157.032905,0.00040448,24]
[320876963,1711660232501,-157.032905,0.00040458,25]
[320876964,1711660232510,-157.032905,0.00040467,27]
[320876965,1711660232520,-157.032905,0.00040468,26]
[320876966,1711660232530,-150.5,0.0004047,15]
[320876967,1711660232539,-231.0,0.0004047,15]
[320876968,1711660232549,-207.0,0.0004047,15]
[320876969,1711660232558,-157.032905,0.00040477,28]
[320876970,1711660232568,-157.032905,0.00040478,27]
[320876971,1711660232578,-150.5,0.0004048,15]
[320876972,1711660232587,-231.0,0.0004048,15]
[320876973,1711660232596,-255.5,0.0004048,15]
[320876974,1711660232606,-207.0,0.0004048,15]
[320876975,1711660232615,-157.032905,0.00040487,29]
[320876976,1711660232625,-157.032905,0.00040488,28]
[320876977,1711660232634,-150.5,0.0004049,15]
[320876978,1711660232644,-231.0,0.0004049,15]
[320876979,1711660232653,-150.5,0.0004049,15]
[320876980,1711660232662,-207.0,0.0004049,15]
[320876981,1711660232671,-163.91789015,0.0004049,2]
[320876982,1711660232680,-163.91789015,0.0004049,2]
[320876983,1711660232690,-157.032905,0.00040497,30]
[320876984,1711660232699,-1994.99654466,0.00040497,2]
[320876985,1711660232708,-414.67162,0.00040498,60]
[320876986,1711660232717,-157.032905,0.00040498,29]
[320876987,1711660232726,-150.0,0.00040499,30]
[320876988,1711660232735,-350.00000001,0.00040499,31]
[320876989,1711660232745,-519754.53592212,0.000405,30]
[320876990,1711660232770,-500.5519,0.000405,30]
[320876991,1711660232782,-1266.36484861,0.000405,30]
[320876992,1711660232806,-1489.27692077,0.000405,30]
[320876993,1711660232818,-273.14578064,0.000405,30]
[320876994,1711660232830,-1446.4281417,0.000405,30]
[320876995,1711660232842,-439.14150778,0.000405,30]
[320876996,1711660232853,-1013.78863166,0.000405,30]
[320876997,1711660232864,-591.6200001,0.000405,30]
[320876998,1711660232876,-545.97,0.000405,30]
[320876999,1711660232888,-920.76,0.000405,30]
[320877000,1711660232910,-88087.70017282,0.000405,30]
[320877001,1711660233005,-1862132.45992108,0.000405,30]
[320877008,1711660237828,-5501.53388891,0.000405,30]
[320877009,1711660237843,-1542.97977566,0.000405,30]
[320877010,1711660237975,-42449.77999989,0.000405,30]
[320877011,1711660238038,-52749.5499802,0.000405,30]
[320877191,1711660239779,-2714.31273662,0.000405,30]
[320877202,1711660239836,-14486.62215052,0.000405,30]
[320877215,1711660239895,-1466.36281864,0.000405,30]
[320877227,1711660239954,-117011.6316183,0.000405,30]
[320877230,1711660239966,-2990.26306183,0.000405,30]
[320877250,1711660240067,-470.98711054,0.000405,30]
[320877272,1711660240180,-5075.40792271,0.000405,30]
[320877275,1711660240192,-6836.06973302,0.000405,30]
[320877278,1711660240203,-8588.52234427,0.000405,30]
[320877535,1711660242827,-5754.0996317,0.000405,30]
[320877546,1711660242996,-359060.82768021,0.000405,30]
[320877547,1711660243106,-4328.21709915,0.000405,30]
[320877548,1711660243118,-1773.03679362,0.000405,30]
[320877549,1711660243130,-580.84,0.000405,30]
[320877550,1711660243165,-6379.10676578,0.000405,30]
[320877551,1711660243277,-403.22850324,0.000405,30]
[320877835,1711660246201,-132319.99474259,0.000405,30]
[320877837,1711660246215,-110722.79466172,0.000405,30]
[320877839,1711660246224,-384.19,0.000405,7]
[320877841,1711660246233,-184.55,0.000405,7]
[320877844,1711660246244,-188.04,0.000405,7]
[320877846,1711660246253,-215.60288055,0.000407,14]
[320877848,1711660246263,-541.47144375,0.00040814,120]
[320877850,1711660246273,-111973.51846018,0.0004086,30]
[320879721,1711660784025,-161.81903191,0.000299,4]
[320879722,1711660784049,-5324.18096809,0.000299,2]
[320879749,1711661432177,-350.0,0.00029,3]
[320879750,1711661432188,-322.3424,0.000298,3]
[320879751,1711661432197,-322.91174239,0.000299,2]
[320879752,1711661432283,-8890.30505571,0.000299,2]
[320879753,1711661432293,-161.81903191,0.000299,4]
[320879754,1711661432302,-163.86,0.0002999,2]
[320879755,1711661432311,-422.32762049,0.00029998,2]
[320879756,1711661432321,-406.69012688,0.00029999,2]
[320879757,1711661432330,-404.51729188,0.0003,4]
[320879759,1711661432339,-25011.75998671,0.0003,4]
[320879847,1711661437943,-571.53704693,0.0003,4]
[320879848,1711661437955,-709.79106127,0.0003,4]
[320879849,1711661438109,-7090.1,0.0003,4]
[320879850,1711661438274,-2756.5756708,0.0003,4]
[320879856,1711661440134,-1882.44193348,0.0003,4]
[320879857,1711661440192,-5177.67926556,0.0003,4]
[320879858,1711661440204,-1787.35268645,0.0003,4]
[320879872,1711661443080,-485.53986145,0.00029999,2]
[320879873,1711661443090,-2138.90171437,0.00029999,2]
[320879874,1711661443100,-6406.13000141,0.0003,4]
[320879875,1711661443112,-3462.49458577,0.0003,4]
[320879876,1711661443124,-4047.71386592,0.0003,4]
[320879877,1711661443145,-1020.9412759,0.0003,4]
[320879878,1711661443232,-80123.67187343,0.0003,4]
[320879879,1711661443245,-1458.25921016,0.0003,4]
[320879880,1711661443257,-4878.80764428,0.0003,4]
[320879881,1711661443316,-4419.79965638,0.0003,4]
[320879882,1711661443328,-12076.36084308,0.0003,4]
[320879883,1711661443340,-2178.43230972,0.0003,4]
[320879884,1711661443400,-13941.2710659,0.0003,4]
[320879885,1711661443470,-856.0,0.0003,4]
[320879886,1711661443482,-1227.33,0.0003,4]
[320879887,1711661443530,-2200.38194403,0.0003,4]
[320880237,1711662575844,-243.0,0.00028689,2]
[320880238,1711662575864,-2346.95780913,0.0002869,2]
[320880239,1711662575884,-1991.79,0.0002869,2]
[320880240,1711662575903,-398.09,0.00028691,2]
[320880241,1711662575922,-150.0,0.00029648,2]
[320880242,1711662575942,-290.66892615,0.00029692,2]
[320880243,1711662575962,-150.0,0.0002978,2]
[320880244,1711662575989,-1648.3787,0.00029899,2]
[320880245,1711662576024,-781.11456472,0.000299,2]
[320880246,1711662576246,-8000.0,0.000299,2]
[320880247,1711662576976,-3879.58783851,0.000299,2]
[320880248,1711662576996,-331.51511034,0.000299,2]
[320880249,1711662577017,-161.81903191,0.000299,4]
[320880250,1711662577038,-3627.07801924,0.000299,2]
[320880251,1711662577569,-1316.33180569,0.000299,2]
[320880252,1711662577590,-163.86,0.0002999,2]
[320880253,1711662577611,-262.20500539,0.00029998,2]
[320880254,1711662577631,-631.3725655,0.00029998,2]
[320880255,1711662577650,-231.02704871,0.00029998,2]
[320880256,1711662577670,-429.02961165,0.00029998,2]
[320880257,1711662577691,-3572.79548603,0.00029998,2]
[320880258,1711662577710,-299.99,0.00029998,12]
[320880259,1711662577729,-1093.38847703,0.00029999,2]
[320880260,1711662578017,-8000.0,0.00029999,2]
[320880261,1711662578365,-254.53057402,0.00029999,2]
[320880262,1711662578384,-222.14745589,0.00029999,2]
[320880263,1711662578405,-3826.76040158,0.00029999,2]
[320880264,1711662578425,-3696.56156851,0.0003,4]
[320880265,1711662578741,-8000.0,0.0003,4]
[320880266,1711662579096,-8000.0,0.0003,4]
[320880267,1711662579594,-8000.0,0.0003,4]
[320880268,1711662580016,-8000.0,0.0003,4]
[320880269,1711662580383,-8000.0,0.0003,4]
[320880270,1711662580915,-8000.0,0.0003,4]
[320880271,1711662581188,-8000.0,0.0003,4]
[320880272,1711662581688,-8000.0,0.0003,4]
[320880273,1711662588770,-1000.0,0.0003,4]
[320880274,1711662589513,-1000.0,0.0003,4]
[320880275,1711662590133,-1000.0,0.0003,4]
[320880276,1711662590628,-1000.0,0.0003,4]
[320880277,1711662591093,-1000.0,0.0003,4]
[320880278,1711662591312,-1000.0,0.00029999,2]
[320880279,1711662593442,-559.07030138,0.00029999,2]
[320880280,1711662593464,-440.92969862,0.0003,4]
[320880281,1711662612331,-168.89495391,0.00029999,2]
[320880282,1711662612361,-191878.40473528,0.0003,4]
[320880283,1711662612390,-259.88151511,0.0003,2]
[320880284,1711662612418,-404.51729188,0.0003,4]
[320880285,1711662612446,-43756.76236707,0.0003,2]
[320880286,1711662612474,-4524.471,0.0003,2]
[320880287,1711662612503,-791.01934609,0.0003,2]
[320880298,1711662632226,-168.89495391,0.0003,2]
[320880299,1711662632236,-169.43,0.00030063,2]
[320880300,1711662632245,-919.62,0.00030173,2]
[320880301,1711662632255,-1108.7934928,0.00030219,2]
[320880302,1711662632267,-500.0,0.00030281,2]
[320880303,1711662632276,-1270.48903722,0.00030326,2]
[320880304,1711662632286,-15779.84,0.00030645,2]
[320880305,1711662632295,-934.67,0.00030674,2]
[320880306,1711662632305,-897.48,0.00030705,2]
[320880307,1711662632315,-398.09,0.00030955,2]
[320880308,1711662632324,-800.0,0.00031404,2]
[320880309,1711662632334,-8008.09,0.0003158,2]
[320880310,1711662632343,-151.03,0.00031705,2]
[320880311,1711662632353,-151.03,0.00031832,2]
[320880312,1711662632362,-151.03,0.00031959,2]
[320880313,1711662632372,-151.03,0.00032086,2]
[320880314,1711662632382,-151.03,0.00032213,2]
[320880315,1711662632391,-151.03,0.0003234,2]
[320880316,1711662632401,-250.0,0.00032377,2]
[320880317,1711662632411,-151.03,0.00032467,2]
[320880318,1711662632420,-151.03,0.00032594,2]
[320880319,1711662632430,-164.86,0.00032663,2]
[320880320,1711662632444,-4943.40982484,0.00032678,2]
[320880321,1711662632454,-151.03,0.00032721,2]
[320880322,1711662632463,-164.86,0.00032744,2]
[320880323,1711662632474,-164.86,0.00032826,2]
[320880324,1711662632483,-151.03,0.00032848,2]
[320880325,1711662632494,-151.03,0.00032976,2]
[320880326,1711662632504,-151.03,0.00033103,2]
[320880327,1711662632514,-398.09,0.00033218,2]
[320880328,1711662632523,-151.03,0.0003323,2]
[320880329,1711662632532,-151.03,0.00033357,2]
[320880330,1711662632542,-934.67,0.00033414,2]
[320880331,1711662632553,-164.32,0.00033512,15]
[320880332,1711662632564,-159.65,0.0003386,120]
[320880333,1711662632573,-513.55,0.00034045,2]
[320880335,1711662632582,-297.64,0.00034394,2]
[320880337,1711662632592,-200.0,0.00034398,2]
[320880339,1711662632601,-331.51511032,0.00034729,2]
[320880341,1711662632610,-959.91431,0.00035,2]
[320880343,1711662632620,-800.0,0.0003533,2]
[320880345,1711662632629,-4943.40982484,0.00035456,2]
[320880348,1711662632638,-398.09,0.00035482,2]
[320880351,1711662632648,-170.61,0.00035907,2]
[320880354,1711662632657,-934.67,0.00036154,2]
[320880357,1711662632667,-398.09,0.00037746,2]
[320880360,1711662632675,-12660.70240316,0.00038233,2]
[320880363,1711662632685,-4943.40982484,0.00038233,2]
[320880366,1711662632694,-800.0,0.00039255,2]
[320880368,1711662632705,-200.0,0.00039463,2]
[320880370,1711662632715,-331.51511032,0.00039558,2]
[320880372,1711662632724,-3010.23056181,0.0004,30]
[320880374,1711662632733,-959.91431,0.0004,2]
[320880376,1711662632742,-398.09,0.0004001,2]
[320880378,1711662632752,-367.31,0.00040835,2]
[320880380,1711662632761,-8699.40330801,0.00040835,14]
[320880382,1711662632770,-83201.5465,0.00040835,30]
[320880384,1711662632779,-541.47144375,0.0004086,120]
[320880386,1711662632788,-2000.0,0.0004086,7]
[320880388,1711662632797,-200.0,0.0004086,7]
[320880390,1711662632807,-12660.70240316,0.00041011,2]
[320880392,1711662632816,-4943.40982484,0.00041011,2]
[320880394,1711662632825,-200.0,0.00041269,7]
[320880396,1711662632835,-919.62,0.00041406,2]
[320880398,1711662632844,-170.61,0.00041833,2]
[320880400,1711662632854,-398.09,0.00042274,2]
[320880401,1711662632863,-159.65,0.00042325,120]
[320880402,1711662632872,-169.46,0.00042931,2]
[320880403,1711662632881,-800.0,0.00043181,2]
[320880404,1711662632890,-267.0,0.000433,3]
[320880405,1711662632900,-12660.70240316,0.00043789,2]
[320880406,1711662632909,-4943.40982484,0.00043789,2]
[320880407,1711662632919,-19864.55388663,0.00044,120]
[320880408,1711662632928,-163.86,0.00044376,2]
[320880409,1711662632937,-331.51511032,0.00044386,2]
[320880410,1711662632946,-200.0,0.00044396,2]
[320880411,1711662632956,-398.09,0.00044538,2]
[320880412,1711662632965,-959.91431,0.00045,2]
[320880413,1711662632974,-513.55,0.00045277,120]
[320880414,1711662632984,-152.0,0.00045663,3]
[320880415,1711662632993,-457.0,0.00046306,2]
[320880416,1711662633003,-1380.0,0.00046306,2]
[320880417,1711662633012,-2418.0,0.00046306,2]
[320880418,1711662633022,-1225.0,0.00046306,2]
[320880419,1711662633031,-537.0,0.00046306,2]
[320880420,1711662633041,-1252.0,0.00046306,2]
[320880421,1711662633050,-2958.0,0.00046306,2]
[320880422,1711662633060,-396.0,0.00046306,2]
[320880423,1711662633070,-1461.0,0.00046306,2]
[320880424,1711662633082,-1137.0,0.00046306,2]
[320880425,1711662633091,-1625.0,0.00046306,2]
[320880426,1711662633101,-2422.0,0.00046306,2]
[320880427,1711662633110,-213.0,0.00046306,2]
[320880428,1711662633121,-4769.0,0.00046306,2]
[320880429,1711662633130,-5677.0,0.00046306,2]
[320880430,1711662633140,-42943.0,0.00046306,2]
[320880431,1711662633149,-1176.0,0.00046306,2]
[320880432,1711662633160,-2448.0,0.00046306,2]
[320880433,1711662633171,-150.0,0.00046306,2]
[320880434,1711662633180,-150.418,0.00046306,2]
[320880435,1711662633190,-1046.0,0.00046306,2]
[320880436,1711662633199,-12660.70240316,0.00046567,2]
[320880437,1711662633210,-4943.40982484,0.00046567,2]
[320880438,1711662633219,-398.09,0.00046802,2]
[320880439,1711662633228,-800.0,0.00047106,2]
[320880440,1711662633237,-164.32,0.00047211,15]
[320880441,1711662633256,-3000.0,0.00047649,2]
[320880442,1711662633268,-151.0,0.00047671,2]
[320880443,1711662633278,-155.37,0.00047781,2]
[320880444,1711662633287,-1000.0,0.0004779,7]
[320880445,1711662633297,-100000.0,0.00048,90]
[320880446,1711662633306,-155.37,0.0004802,2]
[320880447,1711662633315,-297.64,0.00048151,2]
[320880448,1711662633326,-150.23076923,0.00048199,30]
[320880449,1711662633335,-212.0,0.00048386,2]
[320880450,1711662633346,-150.35441174,0.00048399,30]
[320880451,1711662633355,-302.0,0.00048472,4]
[320880452,1711662633365,-156.78572009,0.00048492,30]
[320880453,1711662633375,-5900.6652276,0.0004859,10]
[320880454,1711662633384,-4000.0,0.00048629,2]
[320880455,1711662633394,-1098.0,0.000487,117]
[320880456,1711662633403,-150.0,0.000487,9]
[320880457,1711662633412,-150.23076923,0.00048705,30]
[320880458,1711662633421,-156.78572009,0.00048805,30]
[320880459,1711662633430,-155.45999998,0.00048854,30]
[320880460,1711662633440,-150.55245195,0.00048854,30]
[320880461,1711662633449,-150.35441174,0.00048875,30]
[320880462,1711662633459,-1499.999999,0.00048888,120]
[320880463,1711662633469,-151.032905,0.00048942,76]
[320880464,1711662633479,-151.032905,0.00048952,77]
[320880465,1711662633490,-151.032905,0.00048962,78]
[320880466,1711662633499,-151.032905,0.00048972,79]
[320880467,1711662633510,-151.032905,0.00048982,80]
[320880468,1711662633519,-150.0,0.00048987,7]
[320880469,1711662633530,-151.032905,0.00048992,81]
[320880470,1711662633540,-457.53725526,0.00049,30]
[320880471,1711662633550,-2241.11626916,0.00049,2]
[320880472,1711662633560,-1000.0,0.00049,120]
[320880473,1711662633570,-150.0,0.00049,30]
[320880474,1711662633579,-866.86266986,0.00049,120]
[320880475,1711662633591,-151.032905,0.00049002,82]
[320880476,1711662633601,-151.032905,0.00049012,83]
[320880477,1711662633610,-7264.89844977,0.00049014,5]
[320880478,1711662633620,-4000.0,0.00049022,2]
[320880479,1711662633629,-150.23076923,0.0004905,30]
[320880480,1711662633638,-398.09,0.00049066,2]
[320880481,1711662633648,-150.0,0.00049172,7]
[320880482,1711662633657,-150.0,0.000492,9]
[320880483,1711662633667,-160.3639009,0.00049215,25]
[320880484,1711662633676,-172.48230444,0.00049215,25]
[320880485,1711662633686,-1376.59231063,0.00049215,25]
[320880486,1711662633695,-151.02532419,0.00049215,41]
[320880487,1711662633705,-331.51511032,0.00049215,2]
[320880488,1711662633714,-317.46885953,0.00049215,2]
[320880489,1711662633723,-5000.0,0.00049215,3]
[320880490,1711662633733,-150.0,0.0004926,7]
[320880491,1711662633742,-151.032905,0.00049262,84]
[320880492,1711662633751,-151.032905,0.00049272,85]
[320880493,1711662633761,-151.032905,0.00049282,86]
[320880494,1711662633770,-150.5,0.00049285,15]
[320880495,1711662633780,-604.0,0.00049287,7]
[320880496,1711662633789,-151.032905,0.00049292,87]
[320880497,1711662633798,-150.5,0.00049295,15]
[320880498,1711662633807,-150.0,0.000493,120]
[320880499,1711662633816,-151.032905,0.00049302,88]
[320880500,1711662633826,-165.35,0.00049304,2]
[320880501,1711662633835,-150.5,0.00049305,15]
[320880502,1711662633846,-150.0,0.00049306,2]
[320880503,1711662633854,-150.0,0.00049306,7]
[320880504,1711662633864,-151.032905,0.00049312,89]
[320880505,1711662633873,-346.25727388,0.00049313,4]
[320880506,1711662633882,-1416.93375448,0.00049313,4]
[320880507,1711662633891,-1326.78836463,0.00049314,2]
[320880508,1711662633900,-6757.13760361,0.00049314,4]
[320880509,1711662633910,-1000.0,0.00049314,120]
[320880510,1711662633919,-633.40878411,0.00049314,2]
[320880511,1711662633928,-150.0,0.00049314,7]
[320880512,1711662633938,-500.0,0.00049315,120]
[320880513,1711662633947,-500.0,0.00049315,120]
[320880514,1711662633957,-380.80550965,0.00049315,120]
[320880515,1711662633969,-500.0,0.00049315,120]
[320880516,1711662633979,-500.0,0.00049315,120]
[320880517,1711662633988,-500.0,0.00049315,120]
[320880518,1711662633998,-500.0,0.00049315,120]
[320880519,1711662634008,-503.36679063,0.00049315,120]
[320880520,1711662634017,-500.61440784,0.00049315,120]
[320880521,1711662634029,-501.78539962,0.00049315,120]
[320880522,1711662634038,-502.3884426,0.00049315,120]
[320880523,1711662634048,-502.66952816,0.00049315,120]
[320880524,1711662634057,-502.00841153,0.00049315,120]